[Event "Late-Titled-Tuesday-Blitz-March-26-2024"]
[Site "Chess.com"]
[Date "2024.03.26"]
[Round "7"]
[White "newauto"]
[Black "gxbg2000"]
[Result "0-1"]
[WhiteElo "2199"]
[BlackElo "2037"]
[TimeControl "180+1"]
[EndTime "15:19:15 PDT"]
[Termination "gxbg2000 won on time"]

1. d4 {[%clk 0:03:00.9]} 1... d5 {[%clk 0:02:54.8]} 2. Nf3 {[%clk 0:03:01.8]}
2... c6 {[%clk 0:02:54.4]} 3. Bg5 {[%clk 0:03:01.2]} 3... Nf6 {[%clk 0:02:54.1]}
4. e3 {[%clk 0:03:01.1]} 4... Bf5 {[%clk 0:02:54.2]} 5. Nbd2 {[%clk 0:03:01.1]}
5... Nbd7 {[%clk 0:02:54.2]} 6. c4 {[%clk 0:03:00.9]} 6... h6 {[%clk 0:02:54]}
7. Bh4 {[%clk 0:03:00.9]} 7... g5 {[%clk 0:02:53.5]} 8. Bg3 {[%clk 0:03:01.1]}
8... Bg7 {[%clk 0:02:54.2]} 9. cxd5 {[%clk 0:03:00.4]} 9... cxd5 {[%clk
0:02:53.9]} 10. Qb3 {[%clk 0:02:59.7]} 10... Nb6 {[%clk 0:02:50.1]} 11. Bb5+
{[%clk 0:02:58.2]} 11... Kf8 {[%clk 0:02:49.5]} 12. O-O {[%clk 0:02:57.9]} 12...
e6 {[%clk 0:02:45.7]} 13. Ne5 {[%clk 0:02:55.9]} 13... Nfd7 {[%clk 0:02:42.7]}
14. Ndf3 {[%clk 0:02:50.8]} 14... Nxe5 {[%clk 0:02:41.4]} 15. Nxe5 {[%clk
0:02:50]} 15... Bxe5 {[%clk 0:02:37.9]} 16. Bxe5 {[%clk 0:02:47.6]} 16... f6
{[%clk 0:02:38.2]} 17. Bg3 {[%clk 0:02:46.2]} 17... Kf7 {[%clk 0:02:38.5]} 18.
Kh1 {[%clk 0:02:34.2]} 18... h5 {[%clk 0:02:38.3]} 19. h4 {[%clk 0:02:29.1]}
19... gxh4 {[%clk 0:02:21.3]} 20. Bxh4 {[%clk 0:02:28.6]} 20... Rg8 {[%clk
0:02:21.4]} 21. Qd1 {[%clk 0:02:14.5]} 21... Rg4 {[%clk 0:02:12.3]} 22. g3
{[%clk 0:02:08]} 22... Nc4 {[%clk 0:02:01.4]} 23. b3 {[%clk 0:01:58.1]} 23...
Nd6 {[%clk 0:01:59.5]} 24. Be2 {[%clk 0:01:57.1]} 24... Be4+ {[%clk 0:01:45.7]}
25. f3 {[%clk 0:01:44.6]} 25... Rxh4+ {[%clk 0:01:41.3]} 26. gxh4 {[%clk
0:01:45.5]} 26... Bf5 {[%clk 0:01:39.4]} 27. Rg1 {[%clk 0:01:36.5]} 27... Qh8
{[%clk 0:01:27.7]} 28. Rc1 {[%clk 0:01:23.2]} 28... Re8 {[%clk 0:01:17.4]} 29.
Rc7+ {[%clk 0:01:20.4]} 29... Re7 {[%clk 0:01:17.7]} 30. Qc1 {[%clk 0:01:20.4]}
30... Ne8 {[%clk 0:01:10]} 31. Rxe7+ {[%clk 0:01:15.8]} 31... Kxe7 {[%clk
0:01:10.9]} 32. Qc8 {[%clk 0:01:14.8]} 32... Qh6 {[%clk 0:00:43.8]} 33. Qxb7+
{[%clk 0:01:12.4]} 33... Kf8 {[%clk 0:00:41.8]} 34. Qb4+ {[%clk 0:00:59.5]}
34... Kf7 {[%clk 0:00:41]} 35. Qc3 {[%clk 0:00:52.7]} 35... a5 {[%clk
0:00:18.6]} 36. Kh2 {[%clk 0:00:48.2]} 36... e5 {[%clk 0:00:16.6]} 37. dxe5
{[%clk 0:00:43.3]} 37... fxe5 {[%clk 0:00:16.9]} 38. Qxe5 {[%clk 0:00:42.1]}
38... Be6 {[%clk 0:00:17.1]} 39. Bd3 {[%clk 0:00:38.7]} 39... Nf6 {[%clk
0:00:16.4]} 40. Rg6 {[%clk 0:00:33.9]} 40... Qh8 {[%clk 0:00:13.3]} 41. Bf5
{[%clk 0:00:20.3]} 41... Ng4+ {[%clk 0:00:12.1]} 42. fxg4 {[%clk 0:00:13]} 42...
Qxe5+ {[%clk 0:00:11.6]} 43. Kg2 {[%clk 0:00:10.7]} 43... Bxf5 {[%clk
0:00:11.7]} 44. gxf5 {[%clk 0:00:10.9]} 44... Qxf5 {[%clk 0:00:11.3]} 45. Rg5
{[%clk 0:00:11.5]} 45... Qe4+ {[%clk 0:00:10.6]} 46. Kf2 {[%clk 0:00:11.9]}
46... Qxh4+ {[%clk 0:00:10.6]} 47. Rg3 {[%clk 0:00:12.5]} 47... d4 {[%clk
0:00:09.6]} 48. exd4 {[%clk 0:00:12.3]} 48... Qxd4+ {[%clk 0:00:09.7]} 49. Re3
{[%clk 0:00:12.6]} 49... Qb2+ {[%clk 0:00:09.4]} 50. Re2 {[%clk 0:00:12.9]}
50... Qd4+ {[%clk 0:00:09.5]} 51. Kg2 {[%clk 0:00:12.4]} 51... Kg6 {[%clk
0:00:09.7]} 52. Rf2 {[%clk 0:00:09.8]} 52... Kg5 {[%clk 0:00:09.9]} 53. a3
{[%clk 0:00:09.1]} 53... Kg4 {[%clk 0:00:09.6]} 54. Re2 {[%clk 0:00:08]} 54...
h4 {[%clk 0:00:10]} 55. b4 {[%clk 0:00:05.2]} 55... a4 {[%clk 0:00:09.3]} 56.
Rf2 {[%clk 0:00:04.7]} 56... h3+ {[%clk 0:00:08.5]} 57. Kf1 {[%clk 0:00:03.5]}
57... Qa1+ {[%clk 0:00:06.6]} 58. Ke2 {[%clk 0:00:03.4]} 58... Qxa3 {[%clk
0:00:06.7]} 59. Kf1 {[%clk 0:00:02.4]} 59... Qxb4 {[%clk 0:00:06.6]} 60. Rd2
{[%clk 0:00:01.5]} 60... Qxd2 {[%clk 0:00:05.5]} 61. Kg1 {[%clk 0:00:01.3]}
61... a3 {[%clk 0:00:06]} 0-1

[Event "Late-Titled-Tuesday-Blitz-March-26-2024"]
[Site "Chess.com"]
[Date "2024.03.26"]
[Round "7"]
[White "expii"]
[Black "Cmorales2001"]
[Result "1-0"]
[WhiteElo "2219"]
[BlackElo "2366"]
[TimeControl "180+1"]
[EndTime "15:19:16 PDT"]
[Termination "expii won by resignation"]

1. e4 {[%clk 0:03:00.9]} 1... c6 {[%clk 0:03:00.1]} 2. d4 {[%clk 0:03:00.4]}
2... d5 {[%clk 0:03:01]} 3. f3 {[%clk 0:02:59.7]} 3... dxe4 {[%clk 0:03:00.3]}
4. fxe4 {[%clk 0:03:00.6]} 4... e5 {[%clk 0:03:00.4]} 5. Nf3 {[%clk 0:02:59.5]}
5... Bg4 {[%clk 0:03:00.9]} 6. Bc4 {[%clk 0:02:58]} 6... Nd7 {[%clk 0:02:57.1]}
7. c3 {[%clk 0:02:53.8]} 7... Bd6 {[%clk 0:02:57.1]} 8. O-O {[%clk 0:02:44.3]}
8... Ngf6 {[%clk 0:02:55.2]} 9. Bg5 {[%clk 0:02:38.4]} 9... O-O {[%clk
0:02:49.5]} 10. Nbd2 {[%clk 0:02:26.8]} 10... h6 {[%clk 0:02:07.9]} 11. Be3
{[%clk 0:02:12.3]} 11... Qe7 {[%clk 0:02:02.4]} 12. h3 {[%clk 0:02:04.4]} 12...
Bh5 {[%clk 0:02:00.9]} 13. Bd3 {[%clk 0:01:53.4]} 13... b5 {[%clk 0:01:59]} 14.
Re1 {[%clk 0:01:48.7]} 14... a6 {[%clk 0:01:57.1]} 15. Qc2 {[%clk 0:01:32.9]}
15... Rfe8 {[%clk 0:01:55.7]} 16. a4 {[%clk 0:01:29.5]} 16... Qe6 {[%clk
0:01:34.9]} 17. axb5 {[%clk 0:01:22.8]} 17... axb5 {[%clk 0:01:35.8]} 18. b3
{[%clk 0:01:10.8]} 18... Bf8 {[%clk 0:01:10.3]} 19. c4 {[%clk 0:01:07.9]} 19...
exd4 {[%clk 0:01:06.1]} 20. Nxd4 {[%clk 0:00:58.6]} 20... Qe5 {[%clk 0:01:04.3]}
21. Rxa8 {[%clk 0:00:51.9]} 21... Rxa8 {[%clk 0:01:02.5]} 22. N2f3 {[%clk
0:00:47.2]} 22... Bxf3 {[%clk 0:01:01.1]} 23. Nxf3 {[%clk 0:00:48.1]} 23... Qh5
{[%clk 0:00:53.1]} 24. Bd4 {[%clk 0:00:34.6]} 24... Bc5 {[%clk 0:00:51.7]} 25.
Qf2 {[%clk 0:00:23.8]} 25... Bxd4 {[%clk 0:00:50.2]} 26. Qxd4 {[%clk 0:00:12.9]}
26... bxc4 {[%clk 0:00:45.2]} 27. Bxc4 {[%clk 0:00:11.1]} 27... Re8 {[%clk
0:00:30.2]} 28. e5 {[%clk 0:00:04.3]} 28... c5 {[%clk 0:00:20.3]} 29. Qd6 {[%clk
0:00:03.5]} 29... Nxe5 {[%clk 0:00:14.8]} 30. Nxe5 {[%clk 0:00:03.8]} 30... Re6
{[%clk 0:00:09.6]} 31. Bxe6 {[%clk 0:00:03.8]} 31... fxe6 {[%clk 0:00:10.5]} 32.
Qxe6+ {[%clk 0:00:04.6]} 32... Kh7 {[%clk 0:00:10.3]} 33. Qf7 {[%clk 0:00:03.3]}
33... Qg5 {[%clk 0:00:10.4]} 34. Nf3 {[%clk 0:00:02.7]} 34... Qf4 {[%clk
0:00:09.4]} 35. Qe6 {[%clk 0:00:02.7]} 35... Qb4 {[%clk 0:00:07.5]} 36. Qe3
{[%clk 0:00:03.2]} 36... c4 {[%clk 0:00:07.4]} 37. bxc4 {[%clk 0:00:03]} 37...
Qxc4 {[%clk 0:00:08.3]} 38. Rc1 {[%clk 0:00:03.3]} 38... Qf7 {[%clk 0:00:08.1]}
39. Qd3+ {[%clk 0:00:03.7]} 39... Qg6 {[%clk 0:00:08.7]} 40. Qxg6+ {[%clk
0:00:03.4]} 40... Kxg6 {[%clk 0:00:09.6]} 41. Re1 {[%clk 0:00:04]} 41... Kf5
{[%clk 0:00:10.1]} 42. Kf2 {[%clk 0:00:04.5]} 42... Ne4+ {[%clk 0:00:09.3]} 43.
Rxe4 {[%clk 0:00:04.4]} 43... Kxe4 {[%clk 0:00:10.1]} 44. Ke2 {[%clk 0:00:05.3]}
44... Kf4 {[%clk 0:00:10.3]} 45. Kf2 {[%clk 0:00:05.7]} 45... g5 {[%clk
0:00:09.9]} 46. Nh2 {[%clk 0:00:06.2]} 46... Ke4 {[%clk 0:00:10.8]} 47. Nf3
{[%clk 0:00:06.4]} 47... Kf4 {[%clk 0:00:09.3]} 48. Nd2 {[%clk 0:00:06.7]} 48...
h5 {[%clk 0:00:09.6]} 49. Nc4 {[%clk 0:00:07.1]} 49... h4 {[%clk 0:00:09.3]} 50.
Nd6 {[%clk 0:00:06.3]} 50... g4 {[%clk 0:00:09.6]} 51. Nf7 {[%clk 0:00:03.9]}
51... gxh3 {[%clk 0:00:08.2]} 52. gxh3 {[%clk 0:00:04.8]} 52... Ke4 {[%clk
0:00:08.4]} 53. Nh6 {[%clk 0:00:04.8]} 53... Kf4 {[%clk 0:00:09]} 54. Ng4 {[%clk
0:00:04.7]} 54... Ke4 {[%clk 0:00:09.4]} 55. Nf6+ {[%clk 0:00:04]} 55... Kf4
{[%clk 0:00:10]} 56. Nd7 {[%clk 0:00:02.9]} 56... Ke4 {[%clk 0:00:10.1]} 57. Nf8
{[%clk 0:00:03]} 57... Kf4 {[%clk 0:00:10.7]} 58. Ng6+ {[%clk 0:00:03.1]} 58...
Kg5 {[%clk 0:00:11.3]} 59. Ne7 {[%clk 0:00:03]} 59... Kf4 {[%clk 0:00:12]} 60.
Nd5+ {[%clk 0:00:02.6]} 60... Ke4 {[%clk 0:00:11.9]} 61. Ne3 {[%clk 0:00:02.4]}
61... Kf4 {[%clk 0:00:12.6]} 62. Ng4 {[%clk 0:00:02.7]} 62... Ke4 {[%clk
0:00:12.9]} 63. Ke2 {[%clk 0:00:03.1]} 63... Kf4 {[%clk 0:00:13.3]} 64. Nf2
{[%clk 0:00:03.5]} 64... Kg3 {[%clk 0:00:13.9]} 65. Ke3 {[%clk 0:00:03.9]} 65...
Kg2 {[%clk 0:00:14.5]} 66. Kf4 {[%clk 0:00:02.7]} 66... Kh2 {[%clk 0:00:14.5]}
67. Kg4 {[%clk 0:00:03.6]} 67... Kg2 {[%clk 0:00:15.1]} 68. Kxh4 {[%clk
0:00:04.1]} 68... Kxf2 {[%clk 0:00:16]} 69. Kg5 {[%clk 0:00:04.2]} 69... Kf3
{[%clk 0:00:16.9]} 70. h4 {[%clk 0:00:04.9]} 70... Kg3 {[%clk 0:00:17.7]} 71. h5
{[%clk 0:00:05.5]} 71... Kh3 {[%clk 0:00:18.1]} 72. h6 {[%clk 0:00:06.4]} 72...
Kg2 {[%clk 0:00:18.9]} 73. h7 {[%clk 0:00:07.3]} 73... Kg1 {[%clk 0:00:19.5]}
74. h8=Q {[%clk 0:00:08.2]} 74... Kf1 {[%clk 0:00:19.8]} 75. Qb2 {[%clk
0:00:07.9]} 1-0

[Event "Late-Titled-Tuesday-Blitz-March-26-2024"]
[Site "Chess.com"]
[Date "2024.03.26"]
[Round "7"]
[White "Brahianzevich"]
[Black "ChessQueen"]
[Result "1-0"]
[WhiteElo "2508"]
[BlackElo "2686"]
[TimeControl "180+1"]
[EndTime "15:19:18 PDT"]
[Termination "Brahianzevich won on time"]

1. e4 {[%clk 0:03:00.9]} 1... c6 {[%clk 0:02:59.7]} 2. Nc3 {[%clk 0:02:59.2]}
2... d5 {[%clk 0:03:00.6]} 3. Nf3 {[%clk 0:02:59.9]} 3... dxe4 {[%clk
0:03:00.4]} 4. Nxe4 {[%clk 0:02:59.8]} 4... Nf6 {[%clk 0:03:01.3]} 5. Qe2 {[%clk
0:02:59.7]} 5... Nxe4 {[%clk 0:03:01]} 6. Qxe4 {[%clk 0:03:00.6]} 6... Nd7
{[%clk 0:03:01.4]} 7. Bc4 {[%clk 0:03:00.2]} 7... Nf6 {[%clk 0:03:01.6]} 8. Ne5
{[%clk 0:02:59.6]} 8... e6 {[%clk 0:03:02]} 9. Qe2 {[%clk 0:03:00.3]} 9... b5
{[%clk 0:03:00.8]} 10. Bb3 {[%clk 0:02:58.6]} 10... Qc7 {[%clk 0:02:55.9]} 11.
d4 {[%clk 0:02:50.4]} 11... Bd6 {[%clk 0:02:56]} 12. O-O {[%clk 0:02:49.3]}
12... O-O {[%clk 0:02:55.6]} 13. a4 {[%clk 0:02:49.6]} 13... c5 {[%clk 0:02:43]}
14. axb5 {[%clk 0:02:44.4]} 14... cxd4 {[%clk 0:02:40.9]} 15. Bf4 {[%clk
0:02:44.4]} 15... Bb7 {[%clk 0:02:37.5]} 16. Rfd1 {[%clk 0:02:41.5]} 16... Nd5
{[%clk 0:02:32.2]} 17. Bg3 {[%clk 0:02:39.7]} 17... a6 {[%clk 0:02:17.6]} 18. b6
{[%clk 0:02:34.4]} 18... Nxb6 {[%clk 0:02:09.9]} 19. Rxd4 {[%clk 0:02:31.8]}
19... Nd5 {[%clk 0:01:45.7]} 20. c3 {[%clk 0:02:29.1]} 20... Rfe8 {[%clk
0:01:34.7]} 21. Bc2 {[%clk 0:02:22.4]} 21... f5 {[%clk 0:01:29.6]} 22. Raa4
{[%clk 0:02:13.8]} 22... Rad8 {[%clk 0:01:25.9]} 23. Rac4 {[%clk 0:02:11.4]}
23... Qb8 {[%clk 0:01:25.8]} 24. Rd1 {[%clk 0:02:07.7]} 24... Nf6 {[%clk
0:01:22.8]} 25. Rcd4 {[%clk 0:02:03.6]} 25... Bc7 {[%clk 0:01:11.8]} 26. Rxd8
{[%clk 0:01:53.7]} 26... Rxd8 {[%clk 0:01:11.7]} 27. Rxd8+ {[%clk 0:01:49.1]}
27... Qxd8 {[%clk 0:01:09.7]} 28. Nf3 {[%clk 0:01:49]} 28... Ne4 {[%clk
0:01:02.2]} 29. Bxc7 {[%clk 0:01:45.9]} 29... Qxc7 {[%clk 0:01:02.1]} 30. Bb3
{[%clk 0:01:44.5]} 30... Qb6 {[%clk 0:00:59]} 31. Nd4 {[%clk 0:01:41.7]} 31...
Bd5 {[%clk 0:00:41.5]} 32. Bxd5 {[%clk 0:01:38.2]} 32... exd5 {[%clk 0:00:42.4]}
33. f3 {[%clk 0:01:37.9]} 33... Nf6 {[%clk 0:00:38.7]} 34. Qe6+ {[%clk 0:01:38]}
34... Qxe6 {[%clk 0:00:38.1]} 35. Nxe6 {[%clk 0:01:38.9]} 35... Kf7 {[%clk
0:00:33.8]} 36. Nd4 {[%clk 0:01:37.8]} 36... g6 {[%clk 0:00:33.3]} 37. Kf2
{[%clk 0:01:36.5]} 37... Ke7 {[%clk 0:00:33.6]} 38. g3 {[%clk 0:01:36.9]} 38...
Kd6 {[%clk 0:00:33.8]} 39. Ke3 {[%clk 0:01:34.5]} 39... Nd7 {[%clk 0:00:34.1]}
40. b4 {[%clk 0:01:32.4]} 40... Ne5 {[%clk 0:00:32.2]} 41. h3 {[%clk 0:01:30.1]}
41... Nc4+ {[%clk 0:00:28.8]} 42. Kf4 {[%clk 0:01:30.3]} 42... h6 {[%clk
0:00:29]} 43. h4 {[%clk 0:01:28.5]} 43... Nd2 {[%clk 0:00:18.4]} 44. h5 {[%clk
0:01:26.7]} 44... gxh5 {[%clk 0:00:16.4]} 45. Nxf5+ {[%clk 0:01:24.1]} 45... Ke6
{[%clk 0:00:16.9]} 46. Ng7+ {[%clk 0:01:21.7]} 46... Kd6 {[%clk 0:00:16]} 47.
Nxh5 {[%clk 0:01:21.6]} 47... Nb1 {[%clk 0:00:16.3]} 48. Ng7 {[%clk 0:01:16.7]}
48... Nxc3 {[%clk 0:00:16.1]} 49. Nf5+ {[%clk 0:01:16.4]} 49... Ke6 {[%clk
0:00:16.1]} 50. Nd4+ {[%clk 0:01:11.8]} 50... Kf6 {[%clk 0:00:16]} 51. Ke3
{[%clk 0:01:09.5]} 51... Ke5 {[%clk 0:00:12.7]} 52. Nc6+ {[%clk 0:01:03.7]}
52... Kd6 {[%clk 0:00:12.9]} 53. Nb8 {[%clk 0:01:04]} 53... Na2 {[%clk
0:00:07.3]} 54. Nxa6 {[%clk 0:01:03.8]} 54... Kc6 {[%clk 0:00:07.7]} 55. f4
{[%clk 0:00:59.9]} 55... Kb5 {[%clk 0:00:07.6]} 56. Nc7+ {[%clk 0:00:58.8]}
56... Kc4 {[%clk 0:00:07.9]} 57. b5 {[%clk 0:00:57.8]} 57... d4+ {[%clk
0:00:07.5]} 58. Kf2 {[%clk 0:00:54.4]} 58... Kc5 {[%clk 0:00:07.5]} 59. f5
{[%clk 0:00:48.3]} 59... Nc3 {[%clk 0:00:07.3]} 60. Kf3 {[%clk 0:00:46.2]} 60...
Kd6 {[%clk 0:00:05.4]} 61. b6 {[%clk 0:00:43.7]} 61... d3 {[%clk 0:00:05.8]} 62.
Ke3 {[%clk 0:00:43.2]} 62... Ne4 {[%clk 0:00:06]} 63. Kxd3 {[%clk 0:00:40.7]}
63... Nxg3 {[%clk 0:00:05.9]} 64. f6 {[%clk 0:00:41.1]} 64... Nh5 {[%clk
0:00:04.2]} 65. f7 {[%clk 0:00:37.4]} 65... Nf4+ {[%clk 0:00:04.8]} 66. Ke4
{[%clk 0:00:37]} 66... Ng6 {[%clk 0:00:05.7]} 67. Kf5 {[%clk 0:00:37.2]} 67...
Nf8 {[%clk 0:00:05.8]} 68. Kf6 {[%clk 0:00:37]} 68... Kc6 {[%clk 0:00:05.1]} 69.
Ne6 {[%clk 0:00:36.5]} 69... Nd7+ {[%clk 0:00:04.7]} 70. Ke7 {[%clk 0:00:36.8]}
70... h5 {[%clk 0:00:04.9]} 71. Nf8 {[%clk 0:00:34.7]} 71... Nxb6 {[%clk
0:00:03.7]} 72. Ng6 {[%clk 0:00:33]} 72... Nd7 {[%clk 0:00:03.7]} 73. Ke6 {[%clk
0:00:32.5]} 73... h4 {[%clk 0:00:03.6]} 74. Nxh4 {[%clk 0:00:32.6]} 74... Kc7
{[%clk 0:00:03.3]} 75. Ke7 {[%clk 0:00:32.9]} 1-0

[Event "Late-Titled-Tuesday-Blitz-March-26-2024"]
[Site "Chess.com"]
[Date "2024.03.26"]
[Round "7"]
[White "jefferyx"]
[Black "ViIIagra"]
[Result "1-0"]
[WhiteElo "3104"]
[BlackElo "2889"]
[TimeControl "180+1"]
[EndTime "15:19:19 PDT"]
[Termination "jefferyx won by resignation"]

1. e4 {[%clk 0:03:00.9]} 1... d6 {[%clk 0:02:55.4]} 2. d4 {[%clk 0:03:00.8]}
2... Nf6 {[%clk 0:02:54.1]} 3. Nc3 {[%clk 0:03:01.1]} 3... e5 {[%clk 0:02:54.7]}
4. Nf3 {[%clk 0:03:01.1]} 4... Nbd7 {[%clk 0:02:54.8]} 5. Bc4 {[%clk 0:03:01.4]}
5... Be7 {[%clk 0:02:55.4]} 6. a4 {[%clk 0:03:01.7]} 6... O-O {[%clk 0:02:55.2]}
7. O-O {[%clk 0:03:02.1]} 7... h6 {[%clk 0:02:53.8]} 8. Re1 {[%clk 0:03:02.5]}
8... c6 {[%clk 0:02:53.2]} 9. h3 {[%clk 0:03:01.7]} 9... Re8 {[%clk 0:02:53.3]}
10. Be3 {[%clk 0:02:55.1]} 10... Bf8 {[%clk 0:02:37.5]} 11. d5 {[%clk
0:02:55.3]} 11... cxd5 {[%clk 0:02:35.2]} 12. Bxd5 {[%clk 0:02:56.2]} 12... Nxd5
{[%clk 0:02:32.2]} 13. Nxd5 {[%clk 0:02:57.1]} 13... Nf6 {[%clk 0:02:32]} 14.
Nxf6+ {[%clk 0:02:57]} 14... Qxf6 {[%clk 0:02:32.8]} 15. c4 {[%clk 0:02:57.3]}
15... b6 {[%clk 0:02:30.2]} 16. a5 {[%clk 0:02:42.2]} 16... Bb7 {[%clk
0:02:23.2]} 17. Nd2 {[%clk 0:02:41.6]} 17... bxa5 {[%clk 0:02:11.5]} 18. Rxa5
{[%clk 0:02:42.5]} 18... a6 {[%clk 0:02:12.1]} 19. Qg4 {[%clk 0:02:10.7]} 19...
g6 {[%clk 0:02:00.4]} 20. Rea1 {[%clk 0:01:41.9]} 20... h5 {[%clk 0:01:33.7]}
21. Qd7 {[%clk 0:01:37.6]} 21... Re7 {[%clk 0:01:29]} 22. Qa4 {[%clk 0:01:37.6]}
22... Rc8 {[%clk 0:01:26.2]} 23. b4 {[%clk 0:01:27.9]} 23... Qe6 {[%clk
0:01:17.7]} 24. Qd1 {[%clk 0:01:10.7]} 24... f5 {[%clk 0:01:15.5]} 25. b5 {[%clk
0:01:01.1]} 25... axb5 {[%clk 0:01:08.3]} 26. Rxb5 {[%clk 0:01:02]} 26... Bc6
{[%clk 0:01:07.5]} 27. Rbb1 {[%clk 0:00:54.8]} 27... fxe4 {[%clk 0:01:00.7]} 28.
Ra6 {[%clk 0:00:54.3]} 28... Rb7 {[%clk 0:00:57.5]} 29. Rxb7 {[%clk 0:00:49.7]}
29... Bxb7 {[%clk 0:00:57.7]} 30. Rb6 {[%clk 0:00:50.6]} 30... Bc6 {[%clk
0:00:50.3]} 31. Qb1 {[%clk 0:00:50.7]} 31... Qf5 {[%clk 0:00:44.1]} 32. Qa2
{[%clk 0:00:50.6]} 32... Ra8 {[%clk 0:00:37.4]} 33. Qb1 {[%clk 0:00:49.2]} 33...
Rc8 {[%clk 0:00:34.9]} 34. Qa2 {[%clk 0:00:39.3]} 34... Be7 {[%clk 0:00:32.8]}
35. Qa7 {[%clk 0:00:25.3]} 35... Bd8 {[%clk 0:00:26.4]} 36. Rb8 {[%clk
0:00:18.2]} 36... Rxb8 {[%clk 0:00:23.4]} 37. Qxb8 {[%clk 0:00:19.1]} 37... Qf8
{[%clk 0:00:14.4]} 38. Qc8 {[%clk 0:00:19.6]} 38... Ba4 {[%clk 0:00:09.6]} 39.
Nxe4 {[%clk 0:00:19.8]} 39... Be7 {[%clk 0:00:10.3]} 40. Qa6 {[%clk 0:00:14.8]}
40... Be8 {[%clk 0:00:08.3]} 41. Qc8 {[%clk 0:00:06.7]} 41... Bf7 {[%clk
0:00:07.2]} 42. Qc7 {[%clk 0:00:07.1]} 42... Be6 {[%clk 0:00:05.5]} 43. Bg5
{[%clk 0:00:07.3]} 43... Bxg5 {[%clk 0:00:02]} 44. Nxg5 {[%clk 0:00:08.2]} 44...
Bf7 {[%clk 0:00:02.8]} 45. Nxf7 {[%clk 0:00:08.7]} 45... Qxf7 {[%clk 0:00:03.7]}
46. Qxd6 {[%clk 0:00:09.3]} 46... Qxc4 {[%clk 0:00:04.2]} 47. Qxg6+ {[%clk
0:00:09.6]} 47... Kf8 {[%clk 0:00:03.6]} 48. Qf6+ {[%clk 0:00:10]} 48... Kg8
{[%clk 0:00:03.5]} 49. Qg5+ {[%clk 0:00:09.1]} 49... Kf8 {[%clk 0:00:04]} 50.
Qxe5 {[%clk 0:00:06.9]} 50... h4 {[%clk 0:00:03.7]} 51. Qf5+ {[%clk 0:00:05.4]}
51... Ke7 {[%clk 0:00:03.9]} 52. Qg5+ {[%clk 0:00:04.1]} 52... Kf7 {[%clk
0:00:03.6]} 53. Qg4 {[%clk 0:00:03.9]} 53... Qc1+ {[%clk 0:00:03.6]} 54. Kh2
{[%clk 0:00:04.6]} 54... Qc7+ {[%clk 0:00:04.5]} 55. f4 {[%clk 0:00:05.1]} 55...
Qd8 {[%clk 0:00:04.2]} 56. Qh5+ {[%clk 0:00:04.7]} 56... Kg7 {[%clk 0:00:03.1]}
57. Qe5+ {[%clk 0:00:04.9]} 57... Kf7 {[%clk 0:00:03.5]} 58. Kg1 {[%clk
0:00:05]} 58... Qd1+ {[%clk 0:00:03.5]} 59. Kf2 {[%clk 0:00:05.8]} 59... Qd2+
{[%clk 0:00:04.1]} 60. Kf3 {[%clk 0:00:06.4]} 60... Qd3+ {[%clk 0:00:04.6]} 61.
Qe3 {[%clk 0:00:05.7]} 61... Qf1+ {[%clk 0:00:05]} 62. Qf2 {[%clk 0:00:05.3]}
62... Qd3+ {[%clk 0:00:05.5]} 63. Kg4 {[%clk 0:00:05.6]} 63... Qg6+ {[%clk
0:00:04.1]} 64. Kxh4 {[%clk 0:00:06.1]} 64... Kg8 {[%clk 0:00:03]} 65. Qg3
{[%clk 0:00:06.1]} 65... Kh8 {[%clk 0:00:02.6]} 66. Qg5 {[%clk 0:00:06.3]} 66...
Qh7+ {[%clk 0:00:02]} 67. Qh5 {[%clk 0:00:06.6]} 1-0